bitfinex-derivatives/quotes_ETHF0:USTF0_20250830
["timestamp","ask_amount","ask_price","bid_price","bid_amount"]
[1756553948604,0.2975,4386.6,4385.8,3.4408]
[1756553948907,0.6193404,4386.5,4385.8,3.4408]
[1756553949107,0.1945,4385.9,4385.3,3.2078]
[1756553949300,0.6193404,4385.8,4385.4,0.233]
[1756553949500,0.492,4386.0,4385.4,0.233]
[1756553949702,0.2975,4385.8,4385.4,0.233]
[1756553950807,0.2975,4386.3,4385.4,0.233]
[1756553951005,0.6194143,4386.2,4385.4,0.233]
[1756553951202,1.1114143,4386.1,4385.4,0.233]
[1756553951405,0.6194143,4386.0,4385.4,0.233]
[1756553951609,0.8139143,4386.0,4385.4,0.233]
[1756553951811,0.2975,4385.8,4385.4,0.233]
[1756553952804,3.2078,4386.4,4385.4,0.233]
[1756553953003,0.492,4385.6,4385.5,4.78908512]
[1756553954109,0.492,4385.6,4385.5,5.02208512]
[1756553955114,0.2975,4386.3,4385.5,5.02208512]
[1756553955310,0.2975,4386.1,4385.5,5.02208512]
[1756553955514,0.2975,4385.9,4385.5,5.02208512]
[1756553955812,3.2078,4386.4,4385.5,5.02208512]
[1756553956112,0.2975,4386.1,4385.5,5.02208512]
[1756553956311,0.2975,4385.9,4385.5,5.02208512]
[1756553956608,0.2975,4385.7,4385.5,5.02208512]
[1756553957005,0.2975,4386.1,4385.5,5.02208512]
[1756553957216,0.61984732,4386.0,4385.8,3.2078]
[1756553957406,0.2975,4386.9,4386.1,0.41034]
[1756553957709,0.2975,4386.9,4386.8,3.2078]
[1756553957911,0.2975,4386.9,4386.8,3.4408]
[1756553958104,0.91750316,4386.9,4386.8,3.4408]
[1756553958302,0.492,4387.4,4386.8,3.4408]
[1756553958505,0.73384877,4387.3,4386.8,3.4408]
[1756553958704,0.4114,4387.3,4386.8,3.4408]
[1756553958903,0.3084,4387.3,4386.8,3.4408]
[1756553959105,0.2975,4387.2,4386.8,3.4408]
[1756553960115,0.1139,4387.3,4386.8,3.4408]
[1756553960517,0.4114,4387.3,4386.8,3.4408]
[1756553960720,0.2975,4387.2,4386.8,3.4408]
[1756553962217,0.1139,4387.3,4386.8,3.4408]
[1756553962711,0.1139,4387.3,4386.8,3.85107]
[1756553962913,0.1139,4387.3,4386.8,3.4408]
[1756553963120,0.1139,4387.3,4387.0,0.41026]
[1756553963417,0.1139,4387.3,4387.1,0.233]
[1756553964311,0.492,4386.9,4386.8,3.2078]
[1756553964516,0.1945,4386.9,4386.8,0.233]
[1756553965117,0.492,4386.9,4386.8,0.233]
[1756553970422,0.2975,4386.9,4386.8,0.233]
[1756553970719,0.492,4386.9,4386.8,0.233]
[1756553976221,0.2975,4386.9,4386.8,0.233]
[1756553979426,0.287,4387.2,4386.8,0.233]
[1756553979626,0.287,4387.2,4387.1,3.2078]
[1756553979827,0.4834,4387.2,4387.1,3.4398]
[1756553981233,0.4834,4387.2,4387.1,0.232]
[1756553981526,0.4834,4387.2,4387.1,3.4398]
[1756553984728,0.287,4387.2,4387.1,3.4398]
[1756553985127,0.4834,4387.2,4387.1,3.4398]
[1756553985525,0.4834,4387.2,4387.1,8.22888512]
[1756553989029,0.4834,4387.2,4387.1,5.02108512]
[1756553989331,0.4834,4387.2,4387.1,8.22888512]
[1756553992734,0.1139,4387.4,4387.1,8.22888512]
[1756553992933,0.287,4387.3,4387.1,8.22888512]
[1756553993127,0.3103,4387.4,4387.1,8.22888512]
[1756553993326,0.287,4387.2,4387.1,8.22888512]
[1756553994334,0.287,4387.3,4387.1,8.22888512]
[1756553994843,0.3103,4387.4,4387.1,8.22888512]
[1756553995035,0.287,4387.2,4387.1,8.22888512]
[1756553999836,0.1139,4387.4,4387.1,8.22888512]
[1756554000038,0.90794803,4387.3,4387.1,8.22888512]
[1756554000243,0.1139,4387.4,4387.2,0.41024]
[1756554000438,0.1139,4387.4,4387.3,0.231]
[1756554001039,0.1139,4387.4,4387.3,41.031]
[1756554001240,0.4009,4387.4,4387.3,41.031]
[1756554003836,0.287,4387.4,4387.3,41.031]
[1756554006240,0.287,4387.4,4387.3,45.82008512]
[1756554012049,0.1139,4387.6,4387.3,45.82008512]
[1756554012348,0.1139,4387.6,4387.4,4.78908512]
[1756554012551,0.1139,4387.6,4387.5,0.231]
[1756554012844,0.3059,4387.6,4387.5,0.231]
[1756554013046,0.6087,4387.6,4387.4,4.78908512]
[1756554013247,0.6087,4387.6,4387.5,0.231]
[1756554016451,0.1139,4387.6,4387.5,0.231]
[1756554016851,0.6087,4387.6,4387.3,40.8]
[1756554017051,0.4948,4387.5,4387.4,0.231]
[1756554017549,0.3028,4387.4,4387.3,40.8]
[1756554017749,0.3028,4387.4,4387.3,41.031]
[1756554017949,0.3028,4387.5,4387.3,41.031]
[1756554018154,0.1139,4387.6,4387.3,41.031]
[1756554018756,0.3028,4387.5,4387.3,41.031]
[1756554020058,0.1139,4387.6,4387.3,41.031]
[1756554020354,0.3028,4387.5,4387.3,41.031]
[1756554022563,0.1139,4387.6,4387.3,41.031]
[1756554023056,0.3028,4387.5,4387.3,41.031]
[1756554023251,0.1139,4387.6,4387.3,41.031]
[1756554023460,0.3028,4387.5,4387.3,41.031]
[1756554023660,0.1139,4387.6,4387.3,40.8]
[1756554023661,0.4948,4387.4,4387.3,40.8]
[1756554023860,0.4948,4387.4,4387.3,41.031]
[1756554024551,0.4948,4387.4,4387.3,0.231]
[1756554027159,0.3028,4387.4,4387.3,0.231]
[1756554028868,0.4167,4387.6,4387.3,0.231]
[1756554029076,0.1139,4387.6,4387.3,0.231]
[1756554029265,0.3028,4387.5,4387.3,0.231]
[1756554029461,0.3028,4387.4,4387.3,0.231]
[1756554030365,0.4948,4387.4,4387.3,0.231]
[1756554031567,0.3028,4387.4,4387.3,0.231]
[1756554032462,0.3028,4387.5,4387.3,0.231]
[1756554032767,0.3028,4387.4,4387.3,0.231]
[1756554033269,0.3028,4387.4,4387.3,41.031]
[1756554033568,0.3028,4387.4,4387.3,45.82008512]
[1756554038467,0.1139,4387.6,4387.3,45.82008512]
[1756554038665,0.4115,4387.6,4387.3,45.82008512]
[1756554038865,0.4115,4387.6,4387.4,4.78908512]
[1756554039065,0.2976,4387.6,4387.5,0.23]
[1756554039369,0.2976,4388.6,4387.5,0.23]
[1756554039570,0.84778495,4388.5,4387.8,3.2078]
[1756554039770,0.5015,4388.0,4387.9,0.23]
[1756554040069,0.5015,4388.0,4387.9,0.03501148]
[1756554040573,0.82379495,4388.0,4387.8,3.2078]
[1756554040772,1.12139495,4387.9,4387.8,3.2078]
[1756554041074,1.12139495,4387.9,4387.8,3.4378]
[1756554041971,0.91749495,4387.9,4387.8,3.4378]
[1756554042174,1.12139495,4387.9,4387.8,3.4378]
[1756554044780,1.12139495,4387.9,4387.8,8.22688512]
[1756554045279,0.61989495,4387.9,4387.8,8.22688512]
[1756554046681,0.91749495,4387.9,4387.8,8.22688512]
[1756554048682,1.12139495,4387.9,4387.8,8.22688512]
[1756554048885,1.12133026,4387.9,4387.8,8.22688512]
[1756554050179,0.2976,4387.9,4387.8,8.22688512]
[1756554056986,0.2976,4387.9,4387.8,5.01908512]
[1756554057287,0.2976,4387.9,4387.8,8.22688512]
[1756554060392,0.5015,4387.9,4387.8,8.22688512]
[1756554063986,0.2976,4387.9,4387.8,8.22688512]
[1756554064894,0.5015,4387.9,4387.8,8.22688512]
[1756554065794,0.5015,4387.9,4387.8,7.99688512]
[1756554066093,0.5015,4387.9,4387.8,8.22688512]
[1756554067096,5.12078077,4387.9,4387.8,7.99688512]
[1756554067288,5.12078077,4387.9,4387.8,8.22688512]
[1756554067488,5.34868077,4387.9,4387.8,8.22688512]
[1756554068089,5.12078077,4387.9,4387.8,8.22688512]
[1756554068497,5.12078077,4387.9,4387.8,3.4378]
[1756554071898,1.12078077,4387.9,4387.8,3.4378]
[1756554072899,1.12078077,4387.9,4387.8,0.23]
[1756554080202,0.4833,4387.8,4387.7,3.2078]
[1756554080403,1.10258077,4387.8,4387.7,3.4378]
[1756554081899,0.90648077,4387.8,4387.7,3.4378]
[1756554082499,0.2872,4387.8,4387.7,3.4378]
[1756554082705,0.2872,4387.8,4387.7,44.2378]
[1756554083002,0.1138,4388.1,4387.7,44.2378]
[1756554083997,0.2872,4388.0,4387.7,44.2378]
[1756554084203,0.4833,4387.8,4387.7,44.2378]
[1756554084804,0.2872,4387.8,4387.7,44.2378]
[1756554084996,0.2872,4387.8,4387.7,44.0078]
[1756554085200,0.2872,4387.8,4387.7,44.2378]
[1756554085502,0.2872,4387.8,4387.7,44.0078]
[1756554085800,0.2872,4387.8,4387.7,44.2378]
[1756554087803,0.2872,4387.8,4387.7,44.0078]
[1756554088004,0.2872,4387.8,4387.7,44.2378]
[1756554091007,0.2872,4387.9,4387.7,44.2378]
[1756554091606,0.1138,4388.0,4387.7,44.2378]
[1756554091906,0.2872,4387.9,4387.7,44.2378]
[1756554092109,0.4833,4387.8,4387.7,44.0078]
[1756554092307,0.4833,4387.8,4387.7,49.02688512]
[1756554092506,0.2872,4387.8,4387.7,49.02688512]
[1756554094105,0.401,4388.0,4387.7,49.02688512]
[1756554094708,0.1138,4388.0,4387.7,49.02688512]
[1756554094910,0.2872,4387.9,4387.7,49.02688512]
[1756554095898,0.1138,4388.0,4387.7,49.02688512]
[1756554096104,0.1138,4388.0,4387.8,0.41018]
[1756554096300,0.1138,4388.0,4387.9,0.23]
[1756554098109,0.1138,4388.0,4387.9,5.01908512]
[1756554102317,0.4156,4388.0,4387.9,5.01908512]
[1756554106118,0.1138,4388.0,4387.9,5.01908512]
[1756554110916,0.01274,4389.1,4387.9,5.01908512]
[1756554111218,0.4961,4388.8,4388.7,3.2078]
[1756554111417,1.11410804,4388.8,4388.7,3.4378]
[1756554113414,1.11423881,4388.8,4388.7,3.4378]
[1756554120526,0.61813881,4388.8,4388.7,8.7479]
[1756554120821,3.2078,4391.5,4388.8,0.41009]
[1756554121022,0.3018,4390.2,4389.5,3.2078]
[1756554121217,0.4961,4389.7,4389.6,0.231]
[1756554121418,0.4961,4389.6,4389.5,3.2078]
[1756554121620,0.4961,4389.6,4389.5,3.4388]
[1756554121918,0.3018,4389.6,4389.5,3.4388]
[1756554122118,3.2078,4391.0,4389.5,3.4388]
[1756554122320,0.4961,4390.3,4390.2,3.2078]
[1756554122519,0.4961,4390.3,4390.2,3.4388]
[1756554136947,0.3018,4390.3,4390.2,3.4388]
[1756554137638,0.4897,4390.3,4390.2,3.4388]
[1756554138543,0.4897,4390.3,4390.2,3.4378]
[1756554154048,0.3018,4390.3,4390.2,3.4378]
[1756554155748,4.43182351,4391.4,4390.2,3.4378]
[1756554155949,0.83982758,4391.3,4390.7,3.2078]
[1756554156148,0.2976,4391.0,4390.8,0.23]
[1756554156355,0.90967758,4390.9,4390.8,0.23]
[1756554157454,1.09757758,4390.9,4390.8,0.23]
[1756554159260,0.90967758,4390.9,4390.8,0.23]
[1756554159663,0.2976,4390.9,4390.8,0.23]
[1756554160061,1.10091574,4390.9,4390.8,0.23]
[1756554160766,0.80331574,4390.9,4390.8,0.23]
[1756554160966,1.08731574,4390.9,4390.8,0.23]
[1756554161363,0.4755,4390.9,4390.8,0.23]
[1756554161760,0.1915,4390.9,4390.7,44.0078]
[1756554162063,0.1915,4390.9,4390.8,0.23]
[1756554162465,0.4755,4390.9,4390.8,0.23]
[1756554166869,0.4755,4390.9,4390.8,3.4378]
[1756554168769,0.4755,4390.9,4390.8,3.2078]
[1756554168969,0.4755,4390.9,4390.8,3.4378]
[1756554169871,1.08703146,4390.9,4390.8,3.4378]
[1756554170071,1.31478146,4390.9,4390.8,0.23]
[1756554170472,1.08703146,4390.9,4390.8,0.23]
[1756554177177,1.08703146,4390.9,4390.8,3.4378]
[1756554182483,1.08703146,4390.9,4390.8,0.23]
[1756554182682,1.08703146,4390.9,4390.8,3.4378]
[1756554197309,0.1868,4390.4,4389.8,3.2078]
[1756554197606,0.4757,4389.9,4389.8,3.4378]
[1756554198002,1.08723146,4389.9,4389.8,3.4378]
[1756554198203,1.29554054,4389.9,4389.8,0.23]
[1756554198601,1.29525205,4389.9,4389.8,0.23]
[1756554201307,0.68372059,4389.9,4389.8,0.23]
[1756554208611,0.69027101,4389.9,4389.8,0.23]
[1756554217017,0.40137101,4389.9,4389.6,0.23]
[1756554217217,0.1889,4389.7,4389.6,0.23]
[1756554217408,0.70857101,4389.7,4389.6,0.23]
[1756554219220,0.494,4389.7,4389.6,0.23]
[1756554219413,0.70862953,4389.7,4389.6,0.23]
[1756554220723,0.51972953,4389.7,4389.6,0.23]
[1756554225026,0.70862953,4389.7,4389.6,0.23]
[1756554227315,1.32223135,4389.7,4389.6,0.23]
[1756554229726,1.01713135,4389.7,4389.4,3.2078]
[1756554229920,3.2078,4390.4,4389.4,3.2078]
[1756554229921,0.494,4389.5,4389.4,3.2078]
[1756554230229,0.69920108,4389.5,4389.4,3.4378]
[1756554237033,0.69659875,4389.5,4389.4,3.4378]
[1756554240834,0.69660661,4389.5,4389.4,3.4378]
[1756554241537,0.69661746,4389.5,4389.4,3.4378]
[1756554241736,0.69661746,4389.5,4389.4,3.2078]
[1756554241936,0.69661746,4389.5,4389.4,3.4378]
[1756554243232,0.69662388,4389.5,4389.4,3.4378]
[1756554244736,0.69662388,4389.5,4389.4,3.2078]
[1756554245035,0.69662388,4389.5,4389.4,3.4378]
[1756554247638,0.69662388,4389.5,4389.4,3.2078]
[1756554247834,0.69662388,4389.5,4389.4,3.4378]
[1756554248736,0.69662388,4389.5,4389.4,3.2078]
[1756554248935,0.69662388,4389.5,4389.4,3.4378]
[1756554250237,0.494,4389.5,4389.4,3.4378]
[1756554250436,0.69664316,4389.5,4389.4,3.4378]
[1756554254343,0.69664316,4389.5,4389.4,0.23]
[1756554254644,0.69664316,4389.5,4389.4,3.4378]
[1756554257745,0.20264316,4389.5,4389.4,3.4378]
[1756554259348,0.49704316,4389.5,4389.4,3.4378]
[1756554260548,0.70124316,4389.5,4389.4,3.4378]
[1756554261048,0.4986,4389.5,4389.4,0.23]
[1756554261249,0.69109817,4389.5,4389.4,0.23]
[1756554261549,0.69109817,4389.5,4389.4,3.2078]
[1756554261749,0.69109817,4389.5,4389.4,3.4378]
[1756554262049,0.48689817,4389.5,4389.4,3.4378]
[1756554263251,0.69109817,4389.5,4389.4,3.4378]
[1756554264451,0.48689817,4389.5,4389.4,3.4378]
[1756554264954,0.19249817,4389.5,4389.4,3.4378]
[1756554265856,0.19250016,4389.5,4389.4,3.4378]
[1756554266156,0.19250016,4389.5,4389.4,0.23]
[1756554266455,0.19250016,4389.5,4389.4,3.4378]
[1756554267853,0.48690016,4389.5,4389.4,3.4378]
[1756554268257,0.1901705,4389.5,4389.4,3.4378]
[1756554268753,0.4845705,4389.5,4389.4,3.4378]
[1756554269657,0.6887705,4389.5,4389.4,3.2078]
[1756554269957,0.6887705,4389.5,4389.4,3.4378]
[1756554270851,0.6887705,4389.5,4389.4,0.23]
[1756554271051,0.6887705,4389.5,4389.4,3.4378]
[1756554271455,0.6887705,4389.5,4389.4,3.2078]
[1756554271660,0.4986,4389.5,4389.4,3.4378]
[1756554271956,0.68877394,4389.5,4389.4,3.4378]
[1756554272178,0.48457394,4389.5,4389.4,3.4378]
[1756554274054,0.68877394,4389.5,4389.4,3.4378]
[1756554275257,0.68877394,4389.5,4389.4,3.2078]
[1756554275554,0.68877394,4389.5,4389.4,3.4378]
[1756554278061,0.68877394,4389.5,4389.4,3.2078]
[1756554278254,0.68877394,4389.5,4389.4,3.4378]
[1756554279363,0.68877394,4389.5,4389.4,3.2078]
[1756554279663,0.68877394,4389.5,4389.4,3.4378]
[1756554280365,0.68877394,4389.5,4388.9,3.2078]
[1756554280366,0.297,4389.4,4388.9,3.2078]
[1756554280565,0.4844,4389.0,4388.9,3.2078]
[1756554280768,0.67457394,4389.0,4388.9,3.4378]
[1756554282656,0.6745557,4389.0,4388.9,3.4378]
[1756554283563,0.67452514,4389.0,4388.9,3.4378]
[1756554286966,0.67452514,4389.0,4388.9,3.2078]
[1756554287169,0.67452514,4389.0,4388.9,3.4378]
[1756554293374,0.67437127,4389.0,4388.9,3.4378]
[1756554295569,0.48697127,4389.0,4388.9,3.4378]
[1756554296869,0.18997127,4389.0,4388.9,3.4378]
[1756554298276,0.48697127,4389.0,4388.9,3.4378]
[1756554298578,0.18997127,4389.0,4388.9,3.4378]
[1756554300972,0.297,4389.8,4389.4,0.41004]
[1756554301172,3.2078,4390.5,4389.7,3.61781]
[1756554301375,0.60670055,4390.4,4389.8,0.64]
[1756554301676,0.60670055,4390.3,4389.8,0.64]
[1756554301876,0.297,4390.3,4389.8,0.64]
[1756554302076,0.22777,4391.0,4389.8,0.64]
[1756554302077,0.297,4391.0,4389.8,0.64]
[1756554302269,0.297,4390.8,4389.8,0.23]
[1756554302474,0.297,4390.6,4389.9,0.23]
[1756554302678,0.297,4390.4,4389.7,3.2078]
[1756554302875,0.4844,4389.8,4389.7,3.2078]
[1756554303280,0.4844,4389.8,4389.7,3.4378]
[1756554305870,0.297,4389.8,4389.7,3.4378]
[1756554306072,3.2078,4390.5,4389.7,3.4378]
[1756554306073,0.297,4390.4,4389.7,3.4378]
[1756554306380,0.297,4390.0,4389.7,3.4378]
[1756554306574,3.2078,4390.5,4389.7,3.4378]
[1756554306876,0.297,4390.3,4389.7,3.4378]
[1756554307081,0.2829,4390.4,4389.7,3.4378]
[1756554307276,0.2829,4390.2,4389.7,3.4378]
[1756554307475,0.2829,4390.4,4389.7,3.4378]
[1756554307675,0.2829,4390.2,4389.7,3.4378]
[1756554307901,3.2078,4390.5,4389.7,3.4378]
[1756554308084,0.60497246,4390.4,4389.7,3.2078]
[1756554308285,0.4853,4389.9,4389.8,0.23]
[1756554310386,0.4853,4389.9,4389.7,3.2078]
[1756554310585,0.4853,4389.9,4389.8,0.23]
[1756554312795,0.2829,4389.9,4389.8,0.23]
[1756554313091,0.47022812,4389.9,4389.8,0.23]
[1756554313391,0.67262812,4389.9,4389.8,0.23]
[1756554313592,0.67262274,4389.9,4389.8,0.23]
[1756554317096,0.6725308,4389.9,4389.8,0.23]
[1756554319798,0.3896308,4389.9,4389.7,3.2078]
[1756554319993,0.4853,4389.9,4389.8,0.23]
[1756554320192,0.67260351,4389.9,4389.8,0.23]
[1756554320592,0.67260351,4389.9,4389.7,3.2078]
[1756554320894,0.67260351,4389.8,4389.7,3.2078]
[1756554321094,0.67260351,4389.8,4389.7,3.4378]
[1756554324200,0.67271176,4389.8,4389.7,3.4378]
[1756554326500,0.4853,4389.8,4389.7,3.4378]
[1756554335205,0.4853,4389.8,4389.7,3.2078]
[1756554335419,0.4853,4389.8,4389.7,3.4378]
[1756554339906,4.7131,4389.8,4389.2,3.2078]
[1756554340106,0.1965,4389.3,4389.2,3.4378]
[1756554340411,0.4954,4389.3,4389.2,3.4378]
[1756554341611,0.2989,4389.3,4389.2,3.4378]
[1756554344615,3.2078,4390.0,4389.2,3.4378]
[1756554344919,0.4954,4389.7,4389.2,3.4378]
[1756554345106,0.2989,4389.8,4389.2,3.4378]
[1756554345312,0.2989,4389.6,4389.2,3.4378]
[1756554345613,3.2078,4390.0,4389.2,3.4378]
[1756554345815,0.81976415,4389.9,4389.2,3.4378]
[1756554346013,0.59195415,4389.8,4389.2,3.4378]
[1756554346214,0.1965,4389.6,4389.2,3.4378]
[1756554346416,0.1965,4389.3,4388.7,3.2078]
[1756554346618,0.4954,4388.9,4388.8,0.23]
[1756554347812,0.2989,4389.9,4388.8,0.23]
[1756554348012,0.2989,4389.7,4388.8,0.23]
[1756554348621,0.2989,4389.5,4388.8,0.23]
[1756554348917,0.4954,4389.5,4388.8,0.23]
[1756554349720,0.4954,4389.5,4389.2,3.2078]
[1756554349922,0.2989,4389.4,4389.3,0.23]
[1756554350122,0.4954,4389.4,4389.3,0.23]
[1756554355427,0.4954,4389.4,4389.2,3.2078]
[1756554355428,0.2989,4389.3,4389.2,3.2078]
[1756554355628,3.2078,4390.0,4389.2,3.4378]
[1756554355921,0.2989,4389.8,4389.2,3.84786]
[1756554356222,3.2078,4390.0,4389.2,3.84786]
[1756554356418,0.1965,4389.8,4389.3,0.41005]
[1756554356618,1.22402351,4390.8,4389.3,0.41005]
[1756554356619,0.2989,4389.6,4389.4,0.23]
[1756554356819,0.2989,4390.5,4389.4,0.23]
[1756554357019,0.2989,4390.3,4389.4,0.23]
[1756554357226,0.2989,4390.1,4389.4,0.64003]
[1756554357420,0.5917071,4390.0,4389.4,0.64003]
[1756554357621,0.5917071,4389.9,4389.4,0.64003]
[1756554357920,0.22779,4390.5,4389.4,0.64003]
[1756554358120,0.59173172,4390.4,4389.4,0.64003]
[1756554358319,0.2989,4390.2,4389.4,0.64003]
[1756554358619,0.59173172,4390.1,4389.4,0.64003]
[1756554358818,0.59173172,4390.0,4389.4,0.64003]
[1756554359020,0.1965,4389.8,4389.7,3.2078]
[1756554359229,0.4954,4389.8,4389.7,3.4378]
[1756554362231,0.2989,4389.8,4389.7,3.4378]
[1756554362426,0.2989,4390.1,4389.7,7.6656]
[1756554362636,0.2989,4390.5,4390.3,0.40995]
[1756554362830,0.2989,4390.5,4390.4,0.23]
[1756554363432,0.4954,4390.5,4390.4,0.23]
[1756554370027,0.2989,4390.5,4390.4,0.23]
[1756554374743,0.2823,4391.6,4390.4,0.23]
[1756554375044,0.4822,4390.9,4390.8,3.2078]
[1756554375243,0.2823,4390.9,4390.8,3.4368]
[1756554379246,0.1999,4390.9,4390.8,3.4368]
[1756554379549,0.4822,4390.9,4390.8,3.4368]
[1756554381044,0.4822,4390.9,4390.8,3.2078]
[1756554381239,0.4822,4390.9,4390.8,3.4368]
[1756554387865,0.4822,4390.9,4390.8,3.2078]
[1756554388049,0.2823,4390.9,4390.8,3.4368]
[1756554388248,3.2078,4391.7,4390.8,3.4368]
[1756554388548,0.2823,4391.5,4390.9,0.229]
[1756554388751,0.1999,4391.0,4390.8,3.2078]
[1756554389052,0.4822,4390.9,4390.8,3.2078]
[1756554389353,0.4822,4390.9,4390.8,3.4368]
[1756554390853,0.4822,4390.9,4390.8,3.2078]
[1756554391055,0.4822,4390.9,4390.8,3.4368]
[1756554393147,0.4822,4390.9,4390.8,3.2078]
[1756554393347,0.4822,4390.9,4390.8,3.4368]
[1756554397159,0.4822,4390.9,4390.8,0.229]
[1756554398951,0.2823,4390.9,4390.8,0.229]
[1756554403959,0.4818,4390.9,4390.8,0.229]
[1756554406269,0.2897,4390.8,4390.7,3.2078]
[1756554406464,0.22773,4391.7,4390.7,3.4368]
[1756554406672,0.2897,4391.5,4390.7,3.4368]
[1756554406971,0.2897,4391.3,4390.7,3.4368]
[1756554407269,0.2897,4391.1,4390.7,3.4368]
[1756554407467,0.1995,4391.0,4390.7,3.4368]
[1756554407668,0.1995,4390.9,4390.7,3.4368]
[1756554407862,0.2897,4390.8,4390.7,3.4368]
[1756554409180,0.4892,4390.8,4390.7,3.4368]
[1756554409576,0.4892,4390.8,4390.7,3.2078]
[1756554409776,0.4892,4390.8,4390.7,3.4368]
[1756554409976,0.4892,4390.8,4390.7,3.2078]
[1756554410274,0.4892,4390.8,4390.7,3.4368]
[1756554412978,0.2897,4390.8,4390.7,3.4368]
[1756554413475,0.2897,4391.7,4390.7,3.4368]
[1756554413678,0.2897,4391.5,4390.7,3.4368]
[1756554413879,0.2897,4391.3,4390.7,3.4368]
[1756554414080,0.2897,4391.1,4390.7,3.4368]
[1756554414283,0.22773,4391.5,4390.7,3.4368]
[1756554414483,0.2897,4391.3,4390.7,3.4368]
[1756554414783,0.1995,4391.1,4390.7,3.4368]
[1756554415104,0.22773,4391.7,4390.7,3.4368]
[1756554415276,0.2897,4391.5,4390.7,3.4368]
[1756554415475,0.2897,4391.3,4390.7,3.4368]
[1756554415676,0.59050895,4391.2,4390.7,3.4368]
[1756554415885,0.2897,4390.9,4390.7,3.4368]
[1756554416384,3.2078,4391.8,4390.7,3.4368]
[1756554416575,0.2897,4391.6,4390.7,3.4368]
[1756554416775,0.2897,4391.4,4390.7,3.4368]
[1756554416981,0.2897,4391.2,4390.7,3.4368]
[1756554417284,0.22773,4391.7,4390.7,3.4368]
[1756554417483,0.2897,4391.5,4390.7,3.4368]
[1756554417779,0.59049454,4391.4,4390.7,3.4368]
[1756554417982,0.22773,4391.6,4390.7,3.4368]
[1756554417983,0.2897,4391.2,4390.7,3.4368]
[1756554418197,0.1995,4391.2,4390.7,3.4368]
[1756554418383,0.1995,4391.1,4390.7,3.4368]
[1756554418582,0.22773,4391.7,4390.7,3.4368]
[1756554418787,0.2897,4391.5,4390.7,3.4368]
[1756554419083,0.2897,4391.3,4390.7,3.4368]
[1756554419278,0.59048958,4391.2,4390.7,3.4368]
[1756554419474,0.1995,4390.8,4390.7,3.4368]
[1756554419684,0.4892,4390.8,4390.7,3.4368]
[1756554420585,0.4892,4390.8,4390.7,3.2078]
[1756554420884,0.4892,4390.8,4390.7,3.4368]
[1756554425590,3.2078,4391.8,4390.7,3.4368]
[1756554425889,0.81822344,4391.7,4390.7,3.4368]
[1756554426087,0.2897,4391.5,4390.7,3.4368]
[1756554426290,0.59049344,4391.4,4390.7,3.4368]
[1756554426591,0.2897,4391.3,4390.7,3.4368]
[1756554428391,0.2897,4391.3,4391.2,3.2078]
[1756554428590,0.2897,4391.3,4391.2,3.4368]
[1756554429683,4.43182351,4392.4,4391.2,3.4368]
[1756554429884,0.2846,4392.2,4391.2,3.4368]
[1756554430080,0.2846,4392.0,4391.2,3.4368]
[1756554430289,0.2846,4391.8,4391.2,3.4368]
[1756554430485,0.2846,4391.6,4391.2,3.4368]
[1756554430792,0.2846,4391.4,4391.2,3.4368]
[1756554431183,3.2078,4392.4,4391.2,3.4368]
[1756554431385,0.2846,4392.2,4391.2,3.4368]
[1756554431689,0.1893,4391.9,4391.2,3.4368]
[1756554431888,0.87541582,4391.8,4391.2,3.4368]
[1756554432090,0.59081582,4391.7,4391.2,3.4368]
[1756554432288,0.87541582,4391.7,4391.2,3.4368]
[1756554432489,0.2846,4391.7,4391.2,3.4368]
[1756554432891,0.2846,4392.3,4391.2,3.4368]
[1756554433093,0.59077669,4392.2,4391.2,3.4368]
[1756554433291,0.1893,4392.0,4391.2,3.4368]
[1756554433493,0.2277,4392.3,4391.2,3.4368]
[1756554433795,0.59059302,4392.2,4391.2,3.4368]
[1756554433986,0.2846,4391.8,4391.2,3.4368]
[1756554434185,0.4739,4391.8,4391.2,3.4368]
[1756554436588,0.4739,4391.8,4391.7,3.2078]
[1756554436789,0.4739,4391.8,4391.7,3.4368]
[1756554438196,0.2846,4391.8,4391.7,3.4368]
[1756554439695,0.2846,4392.9,4391.7,3.4368]
[1756554439990,0.58984031,4392.8,4391.7,3.4368]
[1756554440195,0.4739,4391.8,4391.7,3.4368]
[1756554442493,0.4739,4391.8,4391.7,3.2078]
[1756554442692,0.4739,4391.8,4391.7,3.4368]
[1756554444094,0.4739,4391.8,4391.7,3.2078]
[1756554444300,0.4739,4391.8,4391.7,3.4368]
[1756554445098,3.2078,4393.0,4391.7,3.4368]
[1756554445290,0.81738369,4392.9,4391.7,3.4368]
[1756554445602,0.2846,4392.7,4391.7,3.4368]
[1756554445799,0.2846,4392.5,4391.7,3.4368]
[1756554446100,0.1893,4392.3,4391.7,3.4368]
[1756554446298,0.2846,4392.1,4391.7,3.4368]
[1756554446490,0.2846,4392.8,4391.7,3.4368]
[1756554446693,0.5898293,4392.7,4391.7,3.4368]
[1756554446993,0.4739,4392.4,4391.7,3.4368]
[1756554448200,0.2846,4392.4,4391.7,3.4368]
[1756554448598,3.2078,4393.0,4392.2,3.2078]
[1756554448798,0.8743854,4392.9,4392.3,0.229]
[1756554448996,0.5897854,4392.8,4392.3,0.229]
[1756554449203,0.8743854,4392.7,4392.3,0.229]
[1756554449401,0.2846,4392.5,4392.3,0.229]
[1756554449602,0.2846,4392.4,4392.3,0.229]
[1756554451105,0.4739,4392.4,4392.3,0.229]